bitfinex/quotes_ETHUSD_20220215
["timestamp","ask_amount","ask_price","bid_price","bid_amount"]
[1644949680712,19.79707619,3116.4,3116.3,0.00086838]
[1644949681213,19.79707619,3116.4,3116.3,1.24317987]
[1644949681412,20.38112324,3116.4,3116.3,0.00086838]
[1644949681612,19.79707619,3116.4,3116.3,0.00086838]
[1644949682416,20.09707619,3116.4,3116.3,0.00086838]
[1644949682814,20.09707619,3116.4,3116.3,1.24317987]
[1644949683013,0.90707619,3116.4,3116.3,0.00086838]
[1644949683213,0.10463619,3116.4,3116.3,0.00086838]
[1644949683614,0.001,3116.6,3116.3,1.54317987]
[1644949683867,0.001,3116.6,3116.4,1.24231149]
[1644949684065,0.001,3116.6,3116.4,2.24231149]
[1644949684267,0.10637407,3116.6,3116.5,1.24231149]
[1644949684465,0.001,3116.6,3116.5,1.54231149]
[1644949686367,0.001,3116.6,3116.5,4.8055093]
[1644949686769,0.001,3116.6,3116.5,1.54231149]
[1644949686968,0.001,3116.6,3116.5,4.72910422]
[1644949687168,0.001,3116.6,3116.5,6.63348514]
[1644949687368,0.001,3116.6,3116.5,4.44351146]
[1644949688415,0.001,3116.6,3116.5,4.9210106]
[1644949689218,0.001,3116.6,3116.5,9.05895523]
[1644949689818,0.001,3116.6,3116.5,8.45358441]
[1644949690417,0.03786921,3116.6,3116.5,8.62052895]
[1644949691020,0.03786921,3116.6,3116.5,9.22589977]
[1644949691658,0.03786921,3116.6,3116.5,7.98358828]
[1644949691863,0.03786921,3116.6,3116.5,9.26535719]
[1644949692460,0.03786921,3116.6,3116.5,8.65998637]
[1644949692659,0.03786921,3116.6,3116.5,5.12741256]
[1644949692864,0.03786921,3116.6,3116.5,9.23278338]
[1644949693063,0.03786921,3116.6,3116.5,8.62741256]
[1644949693263,0.00248011,3116.9,3116.6,4.95]
[1644949693461,0.00248011,3116.9,3116.7,3.15132972]
[1644949693661,0.00248011,3116.9,3116.8,2.58176891]
[1644949693962,0.16037899,3117.5,3116.8,2.58176891]
[1644949694162,0.16037899,3117.5,3116.9,1.28176891]
[1644949694361,0.16037899,3117.5,3117.0,1.0]
[1644949694561,0.16037899,3117.5,3117.2,0.8019081]
[1644949694761,0.16037899,3117.5,3117.3,1.58176891]
[1644949695013,0.16037899,3117.5,3117.4,1.28176891]
[1644949695218,0.16037899,3117.5,3117.3,1.28176891]
[1644949695420,0.16037899,3117.5,3117.4,1.28176891]
[1644949697320,0.16037899,3117.5,3117.1,1.0]
[1644949697521,0.06835566,3117.4,3117.1,1.0]
[1644949697722,0.06835566,3117.4,3116.5,0.30514451]
[1644949697923,0.06835566,3117.4,3116.6,1.27913748]
[1644949698120,0.06835566,3117.4,3116.6,1.28175543]
[1644949698121,0.91113759,3117.3,3116.6,1.28175543]
[1644949698320,0.06835566,3117.2,3116.6,2.08390543]
[1644949698519,0.06835566,3117.2,3116.7,1.27913748]
[1644949698763,0.16299621,3117.5,3116.7,2.08119748]
[1644949699062,0.16299621,3117.5,3116.6,0.80476795]
[1644949699063,0.06835998,3117.4,3116.8,1.27913748]
[1644949699264,0.06835998,3117.4,3116.9,1.27913748]
[1644949699265,0.00261106,3117.1,3116.9,1.27913748]
[1644949699462,0.00261106,3117.1,3117.0,1.27913748]
[1644949700067,0.00261106,3117.1,3116.6,0.0026115]
[1644949700264,0.06835998,3117.4,3116.5,0.16694454]
[1644949700265,0.06835998,3117.3,3116.5,0.16694454]
[1644949700467,0.00246411,3117.2,3116.6,0.00246461]
[1644949700663,1.13788517,3116.7,3116.6,0.00246461]
[1644949700864,1.20624515,3116.7,3116.6,0.00246461]
[1644949701066,1.13788517,3116.7,3116.6,0.00246461]
[1644949701465,1.13788517,3116.7,3116.3,1.28162871]
[1644949701667,18.95837239,3116.6,3116.5,0.00246457]
[1644949702515,18.95837239,3116.6,3116.3,0.00086838]
[1644949702816,19.69246,3116.4,3116.3,0.00086838]
[1644949703019,0.87083239,3116.4,3116.3,0.00086838]
[1644949703615,0.87083766,3116.4,3116.3,0.00086838]
[1644949703817,0.80246,3116.4,3116.3,0.00086838]
[1644949704117,0.87083787,3116.4,3116.3,0.00086838]
[1644949705017,0.80246,3116.4,3116.3,0.00086838]
[1644949705817,3.35427286,3116.6,3116.3,0.00086838]
[1644949706019,2.99036286,3116.6,3116.3,1.28686645]
[1644949706266,0.80229,3116.6,3116.4,1.28599807]
[1644949706564,0.80229,3116.6,3116.3,0.00334789]
[1644949707161,0.80229,3116.6,3116.3,1.2893317]
[1644949707361,0.80229,3116.6,3116.3,1.28685219]
[1644949707563,0.80229,3116.6,3116.3,1.28933083]
[1644949708464,0.80229,3116.6,3116.4,1.28598381]
[1644949708665,0.80229,3116.6,3116.3,0.00086838]
[1644949708863,0.80229,3116.6,3116.3,0.00250531]
[1644949709465,0.80229,3116.6,3116.3,1.2884048]
[1644949709667,3.32595803,3116.7,3116.5,0.03269092]
[1644949709867,3.32595803,3116.7,3116.6,1.28589949]
[1644949710120,2.18807286,3117.0,3116.6,1.28589949]
[1644949710317,0.06836703,3116.9,3116.6,1.28589949]
[1644949711219,1.20134568,3116.9,3116.6,2.09070186]
[1644949711418,0.06836703,3116.8,3116.6,1.60700237]
[1644949712121,0.06836703,3116.8,3116.6,1.60438]
[1644949712916,0.00262196,3117.1,3116.6,1.60438]
[1644949712917,0.06837123,3116.7,3116.6,1.60438]
[1644949713117,0.06837123,3116.7,3116.6,0.80218]
[1644949713318,0.06837123,3117.1,3116.6,1.60441]
[1644949713521,2.18807286,3117.2,3116.5,0.03269092]
[1644949713522,0.87062123,3117.0,3116.5,0.03269092]
[1644949713763,0.06837123,3116.9,3116.5,0.0353078]
[1644949713962,0.00261641,3117.1,3116.5,0.0353078]
[1644949713963,1.10445043,3116.8,3116.5,0.0353078]
[1644949714264,0.06837123,3116.7,3116.5,0.0353078]
[1644949714464,0.06837123,3116.7,3116.6,0.04857529]
[1644949714666,0.06837123,3116.7,3116.6,0.04371777]
[1644949715867,1.07781144,3116.8,3116.6,1.33066488]
[1644949715868,0.04173224,3116.8,3116.6,1.33066488]
[1644949716070,0.04173224,3116.8,3116.7,1.28694711]
[1644949716272,0.04173224,3116.8,3116.6,0.04371777]
[1644949716273,0.11010441,3116.8,3116.6,0.04371777]
[1644949716467,0.06837217,3116.7,3116.6,0.04371777]
[1644949717369,0.04173224,3116.8,3116.6,1.33100555]
[1644949717617,0.06837077,3116.7,3116.6,0.04371777]
[1644949717818,0.04173224,3116.8,3116.6,0.04371777]
[1644949718017,0.0683706,3116.7,3116.6,0.04371777]
[1644949718420,0.04173224,3116.8,3116.6,0.84590777]
[1644949718623,0.0683713,3116.7,3116.6,0.04371777]
[1644949719620,0.04173224,3116.8,3116.6,1.33133724]
[1644949719824,0.00248548,3117.1,3116.7,1.38106096]
[1644949720019,0.00248548,3117.1,3116.8,1.28761947]
[1644949720219,0.00248548,3117.1,3116.7,0.39344149]
[1644949720418,0.00248548,3117.1,3116.8,1.28750684]
[1644949720620,0.06836673,3117.2,3116.9,0.80208]
[1644949720820,0.00248438,3117.1,3117.0,1.28741452]
[1644949721269,0.00248438,3117.1,3117.0,1.58741452]
[1644949721470,0.00248438,3117.1,3117.0,2.58741452]
[1644949721872,0.06836673,3117.4,3117.2,1.604]
[1644949722067,0.16037899,3117.5,3117.3,4.56890964]
[1644949722267,0.16037899,3117.5,3117.4,4.46799825]
[1644949722669,0.16037899,3117.5,3117.4,1.28706754]
[1644949722867,0.16037899,3117.5,3117.4,5.60013814]
[1644949723070,0.16037899,3117.5,3117.4,6.40204814]
[1644949723467,0.00406018,3117.9,3117.4,6.40204814]
[1644949723670,0.00406018,3117.9,3117.5,1.28706754]
[1644949723875,0.83798469,3118.7,3117.8,1.8015805]
[1644949724071,0.83798469,3118.7,3118.1,1.60313]
[1644949724072,0.06833536,3118.6,3118.1,1.60313]
[1644949724271,0.01833536,3118.6,3118.5,1.0]
[1644949724571,0.83798469,3118.7,3118.5,2.60312]
[1644949724770,0.83798469,3118.7,3118.5,4.20624]
[1644949725019,0.83798469,3118.7,3118.6,1.0]
[1644949725820,0.83798469,3118.7,3118.6,1.3]
[1644949726819,0.83798469,3118.7,3118.6,1.0]
[1644949727621,0.83798469,3118.7,3118.6,4.1789419]
[1644949727821,0.83798469,3118.7,3118.6,1.0]
[1644949728122,0.00099413,3118.8,3118.7,0.80152]
[1644949728324,10.59676941,3119.6,3118.8,8.25273]
[1644949728325,8.3188922,3119.6,3118.8,8.25273]
[1644949728524,0.00396788,3119.6,3118.9,1.60266]
[1644949728772,0.5,3119.7,3119.0,0.463]
[1644949728773,0.00793576,3119.7,3119.0,0.463]
[1644949728971,0.02380728,3119.7,3119.3,1.0]
[1644949729175,0.01554188,3120.3,3119.4,0.80117]
[1644949729370,0.01554188,3120.3,3119.6,1.80129]
[1644949729571,0.04149491,3120.1,3119.7,1.90261]
[1644949729771,0.04149491,3120.1,3119.7,3.5052984]
[1644949729975,0.04092649,3120.0,3119.7,3.2052984]
[1644949730273,0.04035806,3119.9,3119.7,3.2052984]
[1644949730472,0.04035806,3119.9,3119.8,0.80129]
[1644949730672,0.04206333,3120.2,3119.8,0.80129]
[1644949730870,0.01554188,3120.3,3119.9,0.80132]
[1644949731272,0.04206333,3120.2,3119.9,0.80132]
[1644949731674,0.01554188,3120.3,3119.9,0.80132]
[1644949731675,0.04149491,3120.1,3119.9,0.80132]
[1644949732072,0.04092649,3120.0,3119.9,0.80132]
[1644949734717,0.04092649,3120.0,3119.8,0.80129]
[1644949735217,0.01554188,3120.3,3119.8,0.80129]
[1644949735218,0.04035806,3119.9,3119.8,0.80129]
[1644949737180,0.04035806,3119.9,3119.8,1.6025402]
[1644949737780,0.04035806,3119.9,3119.8,0.80129]
[1644949738480,0.04035806,3119.9,3119.8,1.6025394]
[1644949739284,0.04035806,3119.9,3119.4,2.60249]
[1644949739285,0.04035806,3119.9,3119.3,1.0]
[1644949739488,0.04539794,3119.9,3119.3,1.0]
[1644949739680,19.353,3119.8,3119.1,0.00167419]
[1644949739882,0.00503988,3119.7,3118.9,0.8016]
[1644949740128,0.00503988,3119.7,3118.2,1.8021]
[1644949740129,0.46703988,3119.7,3119.1,0.00167419]
[1644949740525,1.12041006,3119.4,3119.1,0.00167419]
[1644949740726,1.12444994,3119.4,3119.1,0.00167419]
[1644949741126,1.12444994,3119.4,3118.8,1.60307]
[1644949741526,1.12444994,3119.4,3119.1,0.00280817]
[1644949742326,1.12444994,3119.4,3119.0,0.80157]
[1644949742726,1.12444994,3119.4,3119.1,0.00280817]
[1644949743529,1.12444994,3119.4,3119.0,0.80157]
[1644949743770,1.12444994,3119.4,3119.1,0.00280817]
[1644949744175,0.00403988,3119.4,3119.1,0.00280817]
[1644949744373,0.00280784,3119.5,3119.1,0.00280817]
[1644949744774,0.00503988,3119.7,3119.0,0.80157]
[1644949744972,0.00265587,3119.5,3119.1,0.00265614]
[1644949745172,0.00265587,3119.5,3119.3,0.0309872]
[1644949745972,0.001,3119.7,3119.3,0.0309872]
[1644949746174,0.00265581,3119.6,3119.3,0.0309872]
[1644949746372,0.00669569,3119.6,3119.3,0.0309872]
[1644949746571,0.00265581,3119.6,3119.3,0.0309872]
[1644949747174,0.00503988,3119.8,3119.3,0.0309872]
[1644949748023,0.00503988,3119.8,3119.3,0.8323672]
[1644949749426,0.04035806,3119.9,3119.4,1.6026086]
[1644949749625,0.04035806,3119.9,3119.5,1.10128]
[1644949749928,0.00266355,3119.7,3119.5,1.10128]
[1644949750123,0.00266355,3119.7,3119.5,0.80128]
[1644949750825,0.04035806,3119.9,3119.6,0.8012152]
[1644949751024,0.00266353,3119.8,3119.6,0.8012152]
[1644949751466,0.00266353,3119.8,3119.6,1.6024452]
[1644949752067,0.04035806,3119.9,3119.6,1.6024452]
[1644949752266,0.04302084,3119.9,3119.7,0.80119]
[1644949752472,0.04302084,3119.9,3119.7,1.60238]
[1644949752669,0.04302084,3119.9,3119.7,1.90238]
[1644949753267,0.04035806,3119.9,3119.7,1.90238]
[1644949754668,0.00266272,3120.0,3119.9,0.03867575]
[1644949755521,0.01554188,3120.3,3119.9,0.03867575]
[1644949755821,0.00266268,3120.1,3119.9,0.03867575]
[1644949756822,0.8014,3120.2,3119.9,0.03867575]
[1644949757022,0.00266265,3120.2,3119.9,0.03867575]
[1644949758021,0.01958176,3120.3,3119.9,0.03867575]
[1644949758222,0.00266262,3120.2,3119.9,0.83998575]
[1644949758623,0.00266262,3120.2,3120.0,1.0]
[1644949758865,0.00266262,3120.2,3120.1,1.0]
[1644949759269,0.01554188,3120.3,3120.1,2.6022514]
[1644949760271,0.01554188,3120.3,3120.1,1.80113]
[1644949760469,0.01554188,3120.3,3120.1,0.80113]
[1644949761468,0.01554188,3120.3,3120.1,1.80113]
[1644949761670,0.01554188,3120.3,3120.1,4.99098045]
[1644949762070,0.01554188,3120.3,3120.2,3.45664556]
[1644949762519,0.01554188,3120.3,3120.2,4.45664556]
[1644949763321,0.01554188,3120.3,3120.2,5.75664556]
[1644949763522,0.01554188,3120.3,3120.2,6.21964556]
[1644949763829,0.01554188,3120.3,3120.2,3.063]
[1644949764920,0.01554188,3120.3,3120.2,2.063]
[1644949765120,0.01554188,3120.3,3120.2,2.16629557]
[1644949765321,0.01554188,3120.3,3120.2,3.47241884]
[1644949765524,0.01554188,3120.3,3120.2,5.69936162]
[1644949767979,0.01554188,3120.3,3120.2,2.16629557]
[1644949768476,0.01554188,3120.3,3120.2,1.86629557]
[1644949768681,0.01554188,3120.3,3120.2,0.10329557]
[1644949768682,0.08383443,3120.3,3120.2,0.10329557]
[1644949770334,0.11141149,3120.3,3120.2,0.03970952]
[1644949771728,0.11141149,3120.3,3120.2,0.33970952]
[1644949772129,0.04311894,3120.3,3120.2,0.33970952]
[1644949772330,0.04311894,3120.3,3120.2,4.82298362]
[1644949772529,0.04311894,3120.3,3120.2,4.52298362]
[1644949772729,0.11140969,3120.3,3120.2,0.03970952]
[1644949773330,0.11140969,3120.3,3120.2,0.33970952]
[1644949774777,0.11140969,3120.3,3120.2,0.00573857]
[1644949775776,0.11140969,3120.3,3120.2,0.80682857]
[1644949776676,0.11140969,3120.3,3120.2,0.00573857]
[1644949780421,0.11140969,3120.3,3120.2,0.06864186]
[1644949780422,0.11936135,3120.3,3120.2,0.06864186]
[1644949781779,0.11936473,3120.3,3120.2,0.06864186]
[1644949782978,0.11936473,3120.3,3120.2,4.57853121]
[1644949783179,0.11936473,3120.3,3120.2,5.32770284]
[1644949783378,0.11936473,3120.3,3120.2,0.06864186]
[1644949784479,0.11936473,3120.3,3120.2,1.36762623]
[1644949784881,0.11936473,3120.3,3120.2,1.66762623]
[1644949785119,0.11936473,3120.3,3120.2,1.40387433]
[1644949785322,0.11936473,3120.3,3120.2,0.10488996]
[1644949788022,0.11936473,3120.3,3120.2,1.70566696]
[1644949788885,0.11936473,3120.3,3120.2,1.65575496]
[1644949790082,0.11936473,3120.3,3120.2,1.70563042]
[1644949791283,0.0510706,3120.3,3120.2,1.70563042]
[1644949791484,0.11935622,3120.3,3120.2,1.70563042]
[1644949794025,0.11935622,3120.3,3120.2,1.40563042]
[1644949795223,0.11935622,3120.3,3120.2,0.04119146]
[1644949795423,0.11935622,3120.3,3120.2,1.34877073]
[1644949795923,0.0510706,3120.3,3120.2,1.34877073]
[1644949796376,0.11936034,3120.3,3120.2,1.34877073]
[1644949797376,0.11936236,3120.3,3120.2,1.34877073]
[1644949797975,0.11936236,3120.3,3120.2,1.34220025]
[1644949798973,0.0510706,3120.3,3120.2,1.34220025]
[1644949799178,0.11935766,3120.3,3120.2,1.34220025]
[1644949799374,0.11935748,3120.3,3120.2,1.34220025]
[1644949799576,0.0510706,3120.3,3120.2,1.34220025]
[1644949799775,0.0104849,3120.4,3120.3,0.04776272]
[1644949800024,1.14540351,3120.4,3120.3,1.34877151]
[1644949800226,1.21647962,3120.4,3120.3,1.34877151]
[1644949800627,0.07891301,3120.4,3120.3,1.34877151]
[1644949801228,0.07612415,3120.4,3120.3,1.64877151]
[1644949801425,0.07612415,3120.4,3120.3,1.78697148]
[1644949801426,0.0078369,3120.4,3120.3,1.78697148]
[1644949801629,0.0078369,3120.4,3120.3,3.54997148]
[1644949801829,0.0078369,3120.4,3120.3,4.54997148]
[1644949803028,1.15894491,3121.1,3120.3,4.54997148]
[1644949803229,0.06827366,3121.0,3120.7,0.80099]
[1644949803427,0.06827366,3121.0,3120.8,1.30100879]
[1644949804078,0.06827366,3121.0,3120.8,2.10201779]
[1644949804275,0.06827366,3121.0,3120.8,3.204009]
[1644949804477,0.06827366,3121.0,3120.9,1.32709264]
[1644949805473,0.08394746,3121.0,3120.9,1.32709264]
[1644949806282,0.08394746,3121.0,3120.9,1.27709264]
[1644949806676,0.08394746,3121.0,3120.8,1.60201]
[1644949806876,0.0156738,3121.0,3120.8,0.80101]
[1644949807523,0.8167938,3121.0,3120.8,0.80101]
[1644949807725,0.8167938,3121.0,3120.7,0.00290014]
[1644949808126,0.8167938,3121.0,3120.6,0.3]
[1644949808127,4.6,3120.8,3120.5,1.60228]
[1644949808326,4.14163266,3120.7,3120.3,1.65010272]
[1644949808538,4.14163266,3120.7,3120.3,0.04776272]
[1644949808539,1.41562547,3120.6,3120.3,0.04776272]
[1644949808727,0.61438547,3120.5,3120.3,0.04776272]
[1644949809125,1.1689,3120.6,3120.3,0.04776272]
[1644949809126,1.08241569,3120.4,3120.3,0.04776272]
[1644949809326,1.13614887,3120.4,3120.3,0.04776272]
[1644949809628,1.15182267,3120.4,3120.3,0.04776272]
[1644949816128,1.18661793,3120.4,3120.3,0.18110575]
[1644949816329,20.07661793,3120.4,3119.9,0.03867575]
[1644949816529,1.95731016,3120.3,3119.9,0.03867575]
[1644949816729,1.34292469,3120.3,3119.9,0.03867575]
[1644949816930,0.05373318,3120.1,3119.9,0.03867575]
[1644949817332,0.59523787,3120.1,3119.9,0.03867575]
[1644949817531,0.05373318,3120.1,3119.9,0.03867575]
[1644949818531,19.55811865,3120.1,3119.9,0.03867575]
[1644949818781,0.5197883,3120.0,3119.9,0.03867575]
[1644949818982,0.85510318,3120.1,3119.9,0.03867575]
[1644949818983,2.71278865,3120.1,3119.9,0.03867575]
[1644949819181,2.09498873,3120.1,3119.9,0.80136]
[1644949819386,0.85168873,3120.1,3119.9,0.80136]
[1644949819581,0.05031873,3120.1,3119.9,0.80136]
[1644949819781,0.05031873,3120.1,3119.9,0.72122401]
[1644949820783,0.05031873,3120.1,3119.9,1.82251401]
[1644949821384,0.05031873,3120.1,3120.0,0.0292035]
[1644949821986,0.02686659,3120.1,3120.0,0.0292035]
[1644949822186,0.05031873,3120.1,3120.0,0.0292035]
[1644949822389,0.0029028,3121.0,3120.1,1.60209]
[1644949822634,0.0029028,3121.0,3120.2,0.763]
[1644949822830,0.0029028,3121.0,3120.6,1.0]
[1644949823029,1.10723619,3121.2,3120.6,1.3]
[1644949823228,1.10723619,3121.2,3120.5,0.763]
[1644949823229,0.00290294,3121.0,3120.5,0.763]
[1644949823631,0.00290294,3121.0,3120.7,1.60212]
[1644949823828,0.00290294,3121.0,3120.8,0.3]
[1644949824228,0.0162105,3121.5,3120.7,0.80105]
[1644949824428,0.00290299,3121.1,3120.7,1.10105]
[1644949824630,0.00290299,3121.1,3120.8,3.18822957]
[1644949824838,0.00290299,3121.1,3120.8,1.60179]
[1644949825031,0.00290299,3121.1,3120.8,4.0047]
[1644949825239,0.0278207,3121.5,3120.8,4.0047]
[1644949825240,3.89831956,3121.6,3120.9,0.3]
[1644949825433,3.89831956,3121.6,3121.1,0.80091]
[1644949825634,3.89831956,3121.6,3120.6,1.0]
[1644949825635,0.00290295,3121.1,3120.8,0.3]
[1644949825833,0.00290295,3121.1,3120.6,1.3]
[1644949826034,0.80099,3121.0,3120.6,1.3]
[1644949826289,0.80099,3121.0,3120.7,1.35242827]
[1644949826490,0.04610016,3120.9,3120.5,1.0]
[1644949826692,0.04610016,3120.9,3120.6,1.35247074]
[1644949827191,0.80111,3120.8,3120.6,1.35247074]
[1644949829592,0.80111,3120.8,3120.5,0.0029034]
[1644949830032,0.79754993,3120.8,3120.5,0.0029034]
[1644949830233,0.79754993,3120.8,3120.4,0.06006641]
[1644949830435,0.79754993,3120.8,3120.5,0.00199546]
[1644949830631,1.59870543,3120.8,3120.5,1.35492632]
[1644949830834,1.59870543,3120.8,3120.5,0.00199546]
[1644949831033,1.60231,3120.7,3120.5,0.00199546]
[1644949831433,2.16667028,3120.7,3120.3,0.03284916]
[1644949831633,2.16667028,3120.7,3120.4,0.00199549]
[1644949831634,18.89,3120.6,3120.4,0.00199549]
[1644949831833,19.69141,3120.5,3120.4,0.00199549]
[1644949832034,20.492812,3120.5,3120.4,0.00199549]
[1644949832433,20.98330511,3120.5,3120.4,0.00199549]
[1644949832640,20.98330511,3120.5,3120.3,0.03284916]
[1644949832840,20.98330511,3120.5,3120.3,0.00199559]
[1644949832841,19.38056851,3120.4,3120.3,0.00199559]
[1644949833038,20.38056851,3120.4,3120.3,0.00199559]
[1644949833434,21.18202851,3120.4,3120.3,0.00199559]
[1644949833879,22.78494301,3120.4,3119.9,0.03867575]
[1644949834083,2.89493851,3120.3,3120.2,0.00290477]
[1644949834680,21.29437,3120.3,3120.2,0.00290477]
[1644949834882,2.08091425,3120.3,3120.2,0.00290477]
[1644949835082,2.08091054,3120.3,3119.9,0.03867575]
[1644949835282,1.09725305,3120.2,3120.1,0.00290483]
[1644949835689,0.8012,3120.4,3120.1,0.00290483]
[1644949836282,0.8012,3120.4,3120.0,1.36581717]
[1644949836483,0.8512352,3120.4,3120.3,0.05797141]
[1644949838136,0.8512352,3120.4,3120.3,1.42366332]
[1644949838137,0.0500352,3120.4,3120.3,1.42366332]
[1644949838538,0.0500352,3120.4,3120.3,0.00797141]
[1644949838938,0.0500352,3120.4,3120.3,1.37367801]
[1644949839136,1.22035724,3120.4,3120.3,1.37367801]
[1644949840036,1.22035724,3120.4,3120.3,0.00797141]
[1644949841039,0.0500352,3120.4,3120.3,0.00797141]
[1644949841299,0.80115,3120.6,3120.3,0.00797141]
[1644949841300,0.00399958,3120.9,3120.4,0.05316645]
[1644949841497,0.00399958,3120.9,3120.5,1.3656271]
[1644949841693,0.00399958,3120.9,3120.5,1.6656271]
[1644949841890,0.00399958,3121.3,3120.6,1.3656271]
[1644949842090,0.00399958,3121.3,3120.6,2.1666171]
[1644949842290,0.00399958,3121.3,3120.7,1.6656271]
[1644949842492,0.00399958,3121.3,3120.8,1.3656271]
[1644949842690,0.00399958,3121.3,3120.7,1.90184]
[1644949843293,0.80104,3121.2,3120.8,0.80092]
[1644949843597,1.1557,3121.4,3120.5,1.6022]
[1644949843598,0.00399958,3121.1,3120.5,1.6022]
[1644949843792,1.12918558,3121.0,3120.6,0.3]
[1644949844396,0.80114,3121.0,3120.7,1.36549139]
[1644949844595,0.00399958,3121.1,3120.7,2.96744139]
[1644949844795,0.00399958,3121.3,3120.8,1.36549139]
[1644949845049,0.00399958,3121.3,3120.7,1.60195]
[1644949845448,0.00399958,3121.3,3120.8,0.80098]
[1644949846149,0.00399958,3121.3,3120.9,0.00290824]
[1644949846547,0.80499958,3121.3,3120.9,0.08118936]
[1644949846746,0.80499958,3121.3,3121.0,1.60193]
[1644949846955,0.00399958,3121.3,3121.0,1.60193]
[1644949847150,0.00399958,3121.6,3121.0,1.60193]
[1644949847349,0.00290756,3121.7,3121.0,1.90483818]
[1644949847550,0.00290756,3121.7,3121.1,4.86531476]
[1644949847750,0.00290756,3121.7,3121.0,1.90483818]
[1644949847952,0.00290756,3121.7,3121.1,2.16612018]
[1644949848151,0.00290756,3121.7,3121.1,1.60171]
[1644949848355,0.76510583,3122.0,3121.2,1.36525746]
[1644949848557,0.00290763,3121.7,3121.3,1.60143]
[1644949848791,0.00290763,3121.7,3121.3,3.95773]
[1644949849086,0.00290763,3121.7,3121.4,1.36518064]
[1644949849288,0.00290763,3121.7,3121.3,0.3]
[1644949849489,0.00290763,3121.7,3121.1,1.3]
[1644949849490,0.80098,3121.7,3121.1,1.3]
[1644949849687,8.8875048,3122.1,3121.1,0.3]
[1644949849889,0.00285516,3121.9,3121.2,0.00285576]
[1644949850587,0.00285516,3121.9,3121.3,0.80086]
[1644949850787,7.2856248,3122.1,3121.3,0.80086]
[1644949850988,0.00285516,3121.9,3121.3,1.10086]
[1644949851196,0.05044136,3121.6,3121.3,1.15341534]
[1644949852190,0.05044136,3121.6,3121.5,1.0]
[1644949852633,0.05044136,3121.6,3121.5,0.3]
[1644949852834,0.05044136,3121.6,3121.4,1.3]
[1644949853034,0.05044136,3121.6,3121.4,0.3]
[1644949853238,0.05044136,3121.6,3121.3,1.35255534]
[1644949853436,0.00044136,3121.6,3121.3,1.35255534]
[1644949854435,0.00044136,3121.6,3121.4,1.0]
[1644949854637,0.00044136,3121.6,3121.4,3.22408039]
[1644949854835,0.00044136,3121.6,3121.5,1.0]
[1644949855036,0.00044136,3121.6,3121.5,1.3]
[1644949855234,0.00044136,3121.6,3121.5,0.3]
[1644949855440,0.00044136,3121.6,3121.5,1.0]
[1644949855637,0.00044136,3121.6,3121.5,2.36510933]
[1644949855840,0.00044136,3121.6,3121.5,1.0]
[1644949856037,0.00044136,3121.6,3121.5,4.20986976]
[1644949856279,7.2856248,3122.1,3121.5,4.30686544]
[1644949856280,7.2912496,3122.1,3121.5,4.30686544]
[1644949856884,0.01021478,3122.3,3121.5,4.30686544]
[1644949857084,0.05697711,3122.4,3121.9,5.0]
[1644949857085,9.189e-05,3122.4,3121.9,5.0]
[1644949857297,1.89900054,3123.0,3122.0,13.43910641]
[1644949857486,1.89900054,3123.0,3122.3,1.80033]
[1644949857685,1.89900054,3123.0,3122.3,1.0]
[1644949857881,1.89900054,3123.0,3122.6,1.0]
[1644949858081,1.89900054,3123.0,3122.6,1.8004762]
[1644949858282,7.88360321,3123.8,3122.6,2.1004762]
[1644949858483,0.5,3124.1,3122.9,1.0]
[1644949858484,0.005045,3123.7,3122.9,1.0]
[1644949858881,0.005045,3123.7,3123.1,1.0]
[1644949859081,0.005045,3123.7,3123.0,0.3]
[1644949859082,0.005045,3123.7,3123.0,1.3]
[1644949859284,7.185045,3124.1,3123.1,2.40086]
[1644949859482,7.185045,3124.1,3123.1,4.20128]
[1644949859483,0.01009,3124.1,3123.1,4.20128]
[1644949859683,0.01009,3124.1,3123.2,0.3]
[1644949859884,0.01009,3124.1,3123.1,1.0]
[1644949859885,3.97309,3124.1,3123.1,1.0]
[1644949860158,20.08106273,3123.6,3122.6,1.0]
[1644949860353,0.94089095,3123.5,3122.0,1.0]
[1644949860554,9.7281,3123.5,3122.2,1.60116]
[1644949860752,9.7281,3123.5,3122.3,0.00204116]
[1644949860754,10.7281,3123.5,3122.3,0.00204116]
[1644949860950,5.7281,3123.5,3122.3,0.00204116]
[1644949861152,0.04244128,3122.9,3122.4,0.07476481]
[1644949861956,0.00289729,3122.8,3122.4,0.07476481]
[1644949862852,0.04244128,3122.9,3122.4,0.07476481]
[1644949863054,0.00289729,3122.8,3122.4,0.07476481]
[1644949863253,0.00289729,3122.8,3122.6,1.0]
[1644949863653,3.95483857,3123.2,3122.4,1.37476481]
[1644949863881,3.95383857,3123.2,3122.4,1.37476481]
[1644949864084,0.00397959,3123.1,3122.4,2.17530481]
[1644949864283,0.00397959,3123.1,3122.4,1.37476481]
[1644949864684,0.00397959,3123.1,3122.6,1.0]
[1644949865085,0.00397959,3123.1,3122.4,0.07476481]
[1644949865284,1.00397959,3123.1,3122.4,0.07476481]
[1644949865485,0.00397959,3123.1,3122.4,0.0768081]
[1644949865684,3.70781816,3123.2,3122.4,0.0768081]
[1644949866285,0.03681481,3122.7,3122.6,0.04598382]
[1644949866686,0.00289005,3123.0,3122.6,0.04598382]
[1644949867525,4.05577761,3123.0,3122.6,0.04598382]
[1644949867725,3.61930523,3123.0,3122.6,0.04598382]
[1644949867928,3.62154714,3123.0,3122.6,0.04598382]
[1644949868125,1.07982856,3122.7,3122.6,0.04598382]
[1644949869946,3.61930523,3123.0,3122.6,0.04598382]
[1644949870231,0.0022418,3123.0,3122.6,0.04598382]
[1644949871029,0.02697614,3122.9,3122.8,0.04351826]
[1644949876733,0.02697614,3122.9,3122.8,0.06229669]
[1644949877539,0.02697614,3122.9,3122.8,0.01229669]
[1644949878979,18.91697614,3122.9,3122.8,0.01229669]
[1644949879479,19.91697614,3122.9,3122.8,0.01229669]
[1644949881178,1.02697614,3122.9,3122.8,0.01229669]
[1644949881479,0.02697614,3122.9,3122.8,0.0417429]
[1644949881678,1.02697614,3122.9,3122.8,0.0417429]
[1644949882732,0.02697614,3122.9,3122.8,0.0417429]
[1644949882929,1.02697614,3122.9,3122.8,0.0417429]
[1644949883430,0.02697614,3122.9,3122.8,0.0417429]
[1644949884631,19.71772614,3122.9,3122.7,0.0234608]
[1644949884932,20.51849884,3122.9,3122.7,0.0234608]
[1644949885130,20.51849884,3122.9,3122.6,0.01376328]
[1644949885335,18.89,3122.7,3122.6,0.01376328]
[1644949885529,18.89395969,3122.7,3122.6,0.01376328]
[1644949886132,18.89395969,3122.7,3122.4,0.00204724]
[1644949886382,0.80082,3122.6,3122.4,0.00204724]
[1644949886579,1.14947835,3122.5,3122.4,0.00204724]